fUST/lending_fUST_20260204
["ID","MTS","AMOUNT","RATE_DAILY","PERIOD"]
[404466046,1770162886998,-151.0,0.00054794,120]
[404466047,1770162887039,-527.47902767,0.00054794,120]
[404466048,1770162887080,-534.11710975,0.00054794,120]
[404466049,1770162887121,-514.49464751,0.00054794,120]
[404466050,1770162887161,-500.0,0.00054794,120]
[404466051,1770162887205,-500.0,0.00054794,120]
[404466052,1770162887247,-528.37837375,0.00054794,120]
[404466053,1770162887289,-523.89591946,0.00054794,120]
[404466054,1770162887330,-550.73524596,0.00054794,120]
[404466055,1770162887373,-513.99561182,0.00054794,120]
[404466056,1770162887416,-1615.55,0.00054794,30]
[404466057,1770162887462,-509.6447391,0.00054794,120]
[404466058,1770162887510,-513.86568392,0.00054794,120]
[404466059,1770162887554,-516.54218452,0.00054794,120]
[404466060,1770162887596,-511.407067,0.00054794,120]
[404466061,1770162887636,-606.73310768,0.00054794,120]
[404466062,1770162887678,-311.51670753,0.00054794,120]
[404466063,1770162887719,-556.53049253,0.00054794,120]
[404466064,1770162887762,-555.10620111,0.00054794,120]
[404466065,1770162887803,-518.90387434,0.00054794,120]
[404466066,1770162887844,-559.55849637,0.00054794,120]
[404466067,1770162887886,-543.87768854,0.00054794,120]
[404466068,1770162887931,-510.09624266,0.00054794,120]
[404466069,1770162887973,-493.05884495,0.00054794,120]
[404466070,1770162888018,-500.0,0.00054794,120]
[404466071,1770162888062,-151.0,0.00054794,60]
[404466072,1770162888105,-151.0,0.00054794,60]
[404466073,1770162888147,-151.0,0.00054794,60]
[404466074,1770162888189,-518.18490314,0.00054794,120]
[404466075,1770162888230,-151.0,0.00054794,60]
[404466076,1770162888274,-151.0,0.00054794,60]
[404466077,1770162888315,-516.76356698,0.00054794,120]
[404466078,1770162888354,-277.595378,0.00054794,60]
[404466079,1770162888397,-513.20876466,0.00054794,120]
[404466080,1770162888437,-629.03465806,0.00054794,120]
[404466081,1770162888478,-958.98,0.00054794,120]
[404466082,1770162888520,-519.56964047,0.00054794,120]
[404466083,1770162888559,-539.83425544,0.00054794,120]
[404466084,1770162888598,-500.0,0.00054794,120]
[404466085,1770162888638,-764.79,0.00054794,120]
[404466086,1770162888681,-605.21368535,0.00054794,120]
[404466087,1770162888723,-531.20502046,0.00054794,120]
[404466088,1770162888765,-645.996825,0.00054794,120]
[404466089,1770162888809,-272.47581372,0.00054794,120]
[404466090,1770162888852,-2342.43,0.00054794,120]
[404466091,1770162888897,-279.01026569,0.00054794,120]
[404466092,1770162888939,-500.0,0.00054794,120]
[404466093,1770162888992,-183.94315325,0.00054794,120]
[404466094,1770162889044,-151.0,0.00054794,120]
[404466095,1770162889092,-151.0,0.00054794,120]
[404466096,1770162889140,-521.86078098,0.00054794,120]
[404466097,1770162889190,-151.0,0.00054794,120]
[404466098,1770162889241,-589.62969088,0.00054794,120]
[404466099,1770162889290,-500.0,0.00054794,120]
[404466100,1770162889339,-500.0,0.00054794,120]
[404466101,1770162889387,-196.956694,0.00054794,120]
[404466102,1770162889434,-500.0,0.00054794,120]
[404466103,1770162889485,-598.97624086,0.00054794,120]
[404466104,1770162889532,-500.0,0.00054794,120]
[404466105,1770162889582,-156.12543298,0.00054794,120]
[404466106,1770162889630,-500.0,0.00054794,120]
[404466107,1770162889679,-500.0,0.00054794,120]
[404466108,1770162889730,-500.0,0.00054794,120]
[404466109,1770162889781,-524.85564558,0.00054794,120]
[404466110,1770162889831,-642.83259435,0.00054794,120]
[404466111,1770162889884,-307.93424221,0.00054794,120]
[404466112,1770162889932,-481.58873884,0.00054794,120]
[404466113,1770162889976,-152.43238299,0.00054794,120]
[404466114,1770162890021,-500.0,0.00054794,120]
[404466115,1770162890070,-151.0,0.00054794,120]
[404466116,1770162890115,-151.0,0.00054794,120]
[404466117,1770162890161,-500.0,0.00054794,120]
[404466118,1770162890211,-151.0,0.00054794,120]
[404466119,1770162890254,-151.0,0.00054794,120]
[404466120,1770162890294,-261.861534,0.00054794,120]
[404466121,1770162890333,-260.24792866,0.00054794,120]
[404466122,1770162890375,-556.17864397,0.00054794,120]
[404466123,1770162890415,-465.55112176,0.00054794,120]
[404466124,1770162890457,-500.0,0.00054794,120]
[404466125,1770162890499,-560.19,0.00054794,120]
[404466126,1770162890543,-1802.39,0.00054794,120]
[404466127,1770162890590,-543.83852153,0.00054794,120]
[404466128,1770162890636,-500.0,0.00054794,120]
[404466129,1770162890680,-603.43340306,0.00054794,120]
[404466130,1770162890725,-603.36,0.00054794,120]
[404466131,1770162890769,-643.20077812,0.00054794,120]
[404466132,1770162890815,-500.0,0.00054794,120]
[404466133,1770162890862,-356.30330748,0.00054794,120]
[404466134,1770162890908,-598.06218597,0.00054794,120]
[404466135,1770162890952,-285.26873871,0.00054794,120]
[404466136,1770162890997,-500.0,0.00054794,120]
[404466137,1770162891043,-500.0,0.00054794,120]
[404466138,1770162891087,-201.85525206,0.00054794,120]
[404466139,1770162891132,-592.17049065,0.00054794,120]
[404466140,1770162891180,-1653.27,0.00054794,120]
[404466141,1770162891224,-500.0,0.00054794,120]
[404466142,1770162891405,-768.81,0.00054794,120]
[404466143,1770162891449,-265.39198967,0.00054794,120]
[404466144,1770162891491,-500.0,0.00054794,120]
[404466145,1770162891533,-578.52,0.00054794,120]
[404466146,1770162891574,-500.0,0.00054794,120]
[404466147,1770162891615,-156.53816359,0.00054794,120]
[404466148,1770162891654,-627.52,0.00054794,120]
[404466149,1770162891693,-999.0,0.00054794,120]
[404466150,1770162891730,-629.88908999,0.00054794,120]
[404466151,1770162891766,-844.72,0.00054794,120]
[404466152,1770162891802,-162.78297258,0.00054794,120]
[404466153,1770162891836,-500.0,0.00054794,120]
[404466154,1770162891875,-500.0,0.00054794,120]
[404466155,1770162891913,-351.01471434,0.00054794,120]
[404466156,1770162891952,-160.15836639,0.00054794,120]
[404466157,1770162891990,-527.38444026,0.00054794,120]
[404466158,1770162892030,-648.01,0.00054794,120]
[404466159,1770162892071,-500.0,0.00054794,120]
[404466160,1770162892112,-7002.19,0.00054794,120]
[404466161,1770162892152,-500.0,0.00054794,120]
[404466162,1770162892195,-500.0,0.00054794,120]
[404466163,1770162892234,-251.87851054,0.00054794,120]
[404466164,1770162892275,-454.13836931,0.00054794,120]
[404466165,1770162892311,-500.0,0.00054794,120]
[404466166,1770162892348,-500.0,0.00054794,120]
[404466167,1770162892387,-576.11282032,0.00054794,120]
[404466168,1770162892432,-500.0,0.00054794,120]
[404466169,1770162892482,-500.0,0.00054794,120]
[404466170,1770162892522,-500.0,0.00054794,120]
[404466171,1770162892563,-605.53467936,0.00054794,120]
[404466172,1770162892603,-500.0,0.00054794,120]
[404466173,1770162892641,-500.0,0.00054794,120]
[404466174,1770162892682,-500.0,0.00054794,120]
[404466175,1770162892723,-500.0,0.00054794,120]
[404466176,1770162892762,-488.76894501,0.00054794,120]
[404466177,1770162892800,-500.0,0.00054794,120]
[404466178,1770162892840,-388.5289398,0.00054794,120]
[404466179,1770162892877,-517.91,0.00054794,120]
[404466180,1770162892917,-514.18772156,0.00054794,120]
[404466181,1770162892957,-446.69891064,0.00054794,120]
[404466182,1770162892997,-500.0,0.00054794,120]
[404466183,1770162893039,-535.64758396,0.00054794,120]
[404466184,1770162893082,-500.0,0.00054794,120]
[404466185,1770162893123,-500.0,0.00054794,120]
[404466186,1770162893165,-253.275926,0.00054794,120]
[404466187,1770162893212,-253.275926,0.00054794,120]
[404466188,1770162893253,-253.275926,0.00054794,120]
[404466189,1770162893297,-500.0,0.00054794,120]
[404466190,1770162893336,-253.275926,0.00054794,120]
[404466191,1770162893376,-253.275926,0.00054794,120]
[404466192,1770162893417,-545.46273689,0.00054794,120]
[404466193,1770162893457,-253.275926,0.00054794,120]
[404466194,1770162893497,-253.275926,0.00054794,120]
[404466195,1770162893538,-253.275926,0.00054794,120]
[404466196,1770162893579,-253.275926,0.00054794,120]
[404466197,1770162893621,-253.275926,0.00054794,120]
[404466198,1770162893663,-253.275926,0.00054794,120]
[404466199,1770162893706,-253.275926,0.00054794,120]
[404466200,1770162893745,-253.275926,0.00054794,120]
[404466201,1770162893788,-253.275926,0.00054794,120]
[404466202,1770162893834,-253.275926,0.00054794,120]
[404466203,1770162893877,-253.275926,0.00054794,120]
[404466204,1770162893938,-540.20104646,0.00054794,120]
[404466205,1770162893982,-253.275926,0.00054794,120]
[404466206,1770162894028,-242.33351871,0.00054794,120]
[404466207,1770162894081,-253.275926,0.00054794,120]
[404466208,1770162894142,-253.275926,0.00054794,120]
[404466209,1770162894183,-500.0,0.00054794,120]
[404466210,1770162894227,-253.275922,0.00054794,120]
[404466211,1770162894273,-16504.34,0.00054794,90]
[404466212,1770162894313,-616.55395839,0.00054794,120]
[404466213,1770162894353,-225.273589,0.00054794,120]
[404466214,1770162894392,-155.03692112,0.00054794,120]
[404466215,1770162894430,-322.61851343,0.00054794,120]
[404466216,1770162894468,-187.81458897,0.00054794,120]
[404466217,1770162894507,-500.0,0.00054794,120]
[404466218,1770162894546,-500.0,0.00054794,120]
[404466219,1770162894586,-510.26329919,0.00054794,120]
[404466220,1770162894629,-1123.18,0.00054794,120]
[404466221,1770162894675,-400.0,0.00054795,120]
[404466222,1770162894716,-157.323248,0.00054795,120]
[404466223,1770162894758,-157.323248,0.00054795,120]
[404466224,1770162894799,-157.323248,0.00054795,120]
[404466225,1770162894840,-157.323248,0.00054795,120]
[404466226,1770162894960,-157.323248,0.00054795,120]
[404466227,1770162895021,-157.323248,0.00054795,120]
[404466228,1770162895065,-157.323248,0.00054795,120]
[404466229,1770162895110,-157.323248,0.00054795,120]
[404466230,1770162895163,-157.323248,0.00054795,120]
[404466231,1770162895219,-157.323248,0.00054795,120]
[404466232,1770162895265,-157.323248,0.00054795,120]
[404466233,1770162895306,-157.323248,0.00054795,120]
[404466234,1770162895346,-157.323248,0.00054795,120]
[404466235,1770162895388,-157.323248,0.00054795,120]
[404466236,1770162895430,-157.323248,0.00054795,120]
[404466237,1770162895471,-157.323248,0.00054795,120]
[404466238,1770162895513,-157.323248,0.00054795,120]
[404466239,1770162895553,-157.323248,0.00054795,120]
[404466240,1770162895597,-157.323248,0.00054795,120]
[404466241,1770162895641,-157.32324,0.00054795,120]
[404466242,1770162913318,-780.0,0.00054,30]
[404466243,1770162913366,-500.0,0.00054794,120]
[404466244,1770162913412,-500.0,0.00054794,120]
[404466245,1770162913459,-269.45134695,0.00054794,120]
[404466246,1770162913507,-500.0,0.00054794,120]
[404466247,1770162913554,-500.0,0.00054794,120]
[404466248,1770162913601,-500.0,0.00054794,120]
[404466249,1770162913649,-500.0,0.00054794,120]
[404466250,1770162913696,-484.59903702,0.00054794,120]
[404466251,1770162913743,-500.0,0.00054794,120]
[404466252,1770162913790,-500.0,0.00054794,120]
[404466253,1770162913831,-2347.37,0.00054794,120]
[404466254,1770162913875,-500.0,0.00054794,120]
[404466255,1770162913920,-500.0,0.00054794,120]
[404466256,1770162913967,-500.0,0.00054794,120]
[404466257,1770162914013,-500.0,0.00054795,120]
[404466258,1770162914060,-500.0,0.00054795,120]
[404466259,1770162914107,-500.0,0.00054795,120]
[404466260,1770162914152,-500.0,0.00054795,120]
[404466261,1770162914199,-500.0,0.00054795,120]
[404466262,1770162914246,-150.0,0.00054795,120]
[404466263,1770162914292,-500.0,0.00054795,120]
[404466264,1770162914337,-150.0,0.00054795,120]
[404466265,1770162914381,-500.0,0.00054795,120]
[404466266,1770162914425,-500.0,0.00054795,120]
[404466267,1770162914470,-500.0,0.00054795,120]
[404466268,1770162914516,-613.64178547,0.00054795,120]
[404466269,1770162914560,-150.0,0.00054795,120]
[404466270,1770162914604,-500.0,0.00054795,120]
[404466271,1770162914650,-150.0,0.00054795,120]
[404466272,1770162914696,-500.0,0.00054795,120]
[404466273,1770162914744,-150.0,0.00054795,120]
[404466274,1770162914790,-250.0,0.00054795,120]
[404466275,1770162914837,-500.0,0.00054795,120]
[404466276,1770162914883,-500.0,0.00054795,120]
[404466277,1770162914930,-150.0,0.00054795,120]
[404466278,1770162914982,-500.0,0.00054795,120]
[404466279,1770162915038,-150.0,0.00054795,120]
[404466280,1770162915090,-500.0,0.00054795,120]
[404466281,1770162915143,-150.0,0.00054795,120]
[404466282,1770162915192,-500.0,0.00054795,120]
[404466283,1770162915244,-150.0,0.00054795,120]
[404466284,1770162915295,-150.0,0.00054795,120]
[404466285,1770162915344,-250.0,0.00054795,120]
[404466286,1770162915394,-500.0,0.00054795,120]
[404466287,1770162915440,-500.0,0.00054795,120]
[404466288,1770162915487,-500.0,0.00054795,120]
[404466289,1770162915538,-500.0,0.00054795,120]
[404466290,1770162915727,-500.0,0.00054795,120]
[404466291,1770162915773,-209.40631852,0.00054795,120]
[404466292,1770162915820,-500.0,0.00054795,120]
[404466293,1770162915866,-500.0,0.00054795,120]
[404466294,1770162915912,-500.0,0.00054795,85]
[404466295,1770162915960,-500.0,0.00054795,120]
[404466296,1770162916009,-500.0,0.00054795,85]
[404466297,1770162916058,-500.0,0.00054795,120]
[404466298,1770162916107,-500.0,0.00054795,85]
[404466299,1770162916152,-150.0,0.00054795,120]
[404466300,1770162916198,-500.0,0.00054795,120]
[404466301,1770162916247,-500.0,0.00054795,85]
[404466302,1770162916293,-150.0,0.00054795,120]
[404466303,1770162916339,-500.0,0.00054795,120]
[404466304,1770162916385,-500.0,0.00054795,85]
[404466305,1770162916430,-150.0,0.00054795,120]
[404466306,1770162916481,-500.0,0.00054795,120]
[404466307,1770162916529,-500.0,0.00054795,85]
[404466308,1770162916574,-150.0,0.00054795,120]
[404466309,1770162916625,-500.0,0.00054795,120]
[404466310,1770162916670,-253.2028916,0.00054795,85]
[404466311,1770162916719,-500.0,0.00054795,120]
[404466312,1770162916769,-150.0,0.00054795,120]
[404466313,1770162916815,-500.0,0.00054795,120]
[404466314,1770162916859,-250.0,0.00054795,120]
[404466315,1770162916904,-500.0,0.00054795,120]
[404466316,1770162916952,-500.0,0.00054795,120]
[404466317,1770162917000,-500.0,0.00054795,120]
[404466318,1770162917047,-500.0,0.00054795,120]
[404466319,1770162917095,-436.97810224,0.00054795,120]
[404466320,1770162917142,-150.0,0.00054795,120]
[404466321,1770162917190,-150.58517045,0.00054795,120]
[404466322,1770162917238,-500.0,0.00054795,120]
[404466323,1770162917285,-500.0,0.00054795,120]
[404466324,1770162917332,-500.0,0.00054795,120]
[404466325,1770162917379,-500.0,0.00054795,120]
[404466326,1770162917426,-500.0,0.00054795,120]
[404466327,1770162917472,-500.0,0.00054795,120]
[404466328,1770162917517,-351.62445168,0.00054795,120]
[404466329,1770162917561,-500.0,0.00054795,120]
[404466330,1770162917604,-500.0,0.00054795,120]
[404466331,1770162917650,-500.0,0.00054795,120]
[404466332,1770162917696,-289.373488,0.00054795,120]
[404466333,1770162917743,-500.0,0.00054795,120]
[404466334,1770162917791,-500.0,0.00054795,120]
[404466335,1770162917838,-500.0,0.00054795,120]
[404466336,1770162917885,-150.0,0.00054795,120]
[404466337,1770162917931,-500.0,0.00054795,120]
[404466338,1770162917976,-150.0,0.00054795,120]
[404466339,1770162918022,-243.41415364,0.00054795,120]
[404466340,1770162918070,-500.0,0.00054795,120]
[404466341,1770162918116,-150.0,0.00054795,120]
[404466342,1770162918164,-500.0,0.00054795,120]
[404466343,1770162918213,-150.0,0.00054795,120]
[404466344,1770162918260,-267.47809705,0.00054795,120]
[404466345,1770162918306,-200.44827673,0.00054795,120]
[404466346,1770162918355,-150.0,0.00054795,120]
[404466347,1770162918400,-150.0,0.00054795,120]
[404466348,1770162918448,-200.57111926,0.00054795,120]
[404466349,1770162918493,-153.34718384,0.00054795,120]
[404466350,1770162918540,-151.0,0.00054795,60]
[404466351,1770162918586,-151.0,0.00054795,60]
[404466352,1770162918633,-151.0,0.00054795,120]
[404466353,1770162918678,-150.0,0.00054795,120]
[404466354,1770162918723,-150.0,0.00054795,120]
[404466355,1770162918768,-150.0,0.00054795,120]
[404466356,1770162918812,-200.0,0.00054795,120]
[404466357,1770162918859,-150.0,0.00054795,120]
[404466358,1770162918903,-150.0,0.00054795,120]
[404466359,1770162918950,-256.06270442,0.00054795,120]
[404466360,1770162918995,-500.0,0.00054795,120]
[404466361,1770162919042,-500.0,0.00054795,120]
[404466362,1770162919089,-500.0,0.00054795,120]
[404466363,1770162919134,-500.0,0.00054795,120]
[404466364,1770162919181,-500.0,0.00054795,120]
[404466365,1770162919227,-500.0,0.00054795,120]
[404466366,1770162919272,-598.8969387,0.00054795,120]
[404466367,1770162919317,-356.81598467,0.00054795,120]
[404466368,1770162919360,-500.0,0.00054795,120]
[404466369,1770162919402,-150.0,0.00054795,120]
[404466370,1770162919446,-500.0,0.00054795,120]
[404466371,1770162919491,-500.0,0.00054795,120]
[404466372,1770162919537,-500.0,0.00054795,120]
[404466373,1770162919584,-500.0,0.00054795,120]
[404466374,1770162919632,-500.0,0.00054795,120]
[404466375,1770162919677,-500.0,0.00054795,120]
[404466376,1770162919816,-479.0,0.00054795,120]
[404466377,1770162919864,-500.0,0.00054795,120]
[404466378,1770162919911,-479.0,0.00054795,120]
[404466379,1770162919960,-152.60862734,0.00054795,120]
[404466380,1770162920010,-500.0,0.00054795,120]
[404466381,1770162920059,-479.0,0.00054795,120]
[404466382,1770162920108,-479.0,0.00054795,120]
[404466383,1770162920158,-479.0,0.00054795,120]
[404466384,1770162920210,-479.0,0.00054795,120]
[404466385,1770162920260,-500.0,0.00054795,120]
[404466386,1770162920306,-479.0,0.00054795,120]
[404466387,1770162920355,-500.0,0.00054795,120]
[404466388,1770162920404,-500.0,0.00054795,120]
[404466389,1770162920452,-479.0,0.00054795,120]
[404466390,1770162920500,-500.0,0.00054795,120]
[404466391,1770162920547,-479.0,0.00054795,120]
[404466392,1770162920592,-500.0,0.00054795,120]
[404466393,1770162920640,-479.0,0.00054795,120]
[404466394,1770162920689,-500.0,0.00054795,120]
[404466395,1770162920737,-500.0,0.00054795,120]
[404466396,1770162920785,-479.0,0.00054795,120]
[404466397,1770162920833,-324.83876732,0.00054795,120]
[404466398,1770162920881,-479.0,0.00054795,120]
[404466399,1770162920933,-479.0,0.00054795,120]
[404466400,1770162920980,-479.0,0.00054795,120]
[404466401,1770162921027,-479.0,0.00054795,120]
[404466402,1770162921074,-479.0,0.00054795,120]
[404466403,1770162921120,-479.0,0.00054795,120]
[404466404,1770162921168,-479.0,0.00054795,120]
[404466405,1770162921221,-479.0,0.00054795,120]
[404466406,1770162921267,-479.0,0.00054795,120]
[404466407,1770162921314,-479.0,0.00054795,120]
[404466408,1770162921363,-479.0,0.00054795,120]
[404466409,1770162921409,-479.0,0.00054795,120]
[404466410,1770162921454,-490.38719048,0.00054795,120]
[404466411,1770162921503,-584.1,0.000548,30]
[404466412,1770162921549,-1000.0,0.000549,120]
[404466413,1770162921601,-600.0,0.0005533,120]
[404466414,1770162921648,-152.0,0.000557,120]
[404466415,1770162921693,-1000.0,0.00057,120]
[404466416,1770162921740,-152.0,0.000571,120]
[404466417,1770162921786,-151.0,0.00057434,60]
[404466418,1770162921831,-151.0,0.00057434,60]
[404466419,1770162921874,-160.33053382,0.00057534,60]
[404466420,1770162921920,-500.0,0.00057534,120]
[404466421,1770162921964,-500.0,0.00057534,120]
[404466422,1770162922009,-500.0,0.00057534,120]
[404466423,1770162922053,-500.0,0.00057534,120]
[404466424,1770162922098,-500.0,0.00057534,120]
[404466425,1770162922143,-5842.7,0.00057534,120]
[404466426,1770162922186,-504.03,0.00057534,120]
[404466427,1770162922229,-500.0,0.00057534,120]
[404466428,1770162922273,-500.0,0.00057534,120]
[404466429,1770162922316,-151.53271661,0.00057534,120]
[404466430,1770162922362,-522.53418973,0.00057534,120]
[404466431,1770162922409,-500.0,0.00057534,120]
[404466432,1770162922457,-512.21179439,0.00057534,120]
[404466433,1770162922505,-200.0,0.00057534,120]
[404466434,1770162922553,-160.17316292,0.00057534,120]
[404466435,1770162922602,-387.8123334,0.00057534,120]
[404466436,1770162922651,-535.48950347,0.00057534,120]
[404466437,1770162922698,-534.62634413,0.00057534,120]
[404466438,1770162922746,-523.50531173,0.00057534,120]
[404466439,1770162922793,-160.14439092,0.00057534,120]
[404466440,1770162922841,-500.0,0.00057534,55]
[404466441,1770162922888,-524.56420481,0.00057534,120]
[404466442,1770162922936,-579.52458607,0.00057534,120]
[404466443,1770162922984,-464.60116389,0.00057534,120]
[404466444,1770162923032,-433.62421046,0.00057534,120]
[404466445,1770162923080,-512.34799732,0.00057534,120]
[404466446,1770162923129,-504.97060702,0.00057534,60]
[404466447,1770162923179,-519.41995552,0.00057534,120]
[404466448,1770162923225,-531.23710316,0.00057534,120]
[404466449,1770162923272,-500.0,0.00057534,120]
[404466450,1770162923318,-525.53416813,0.00057534,120]
[404466451,1770162923365,-566.99238407,0.00057534,120]
[404466452,1770162923411,-633.28679463,0.00057534,120]
[404466453,1770162923458,-450.0,0.00057534,30]
[404466454,1770162923505,-517.80496615,0.00057534,120]
[404466455,1770162923553,-529.58040297,0.00057534,120]
[404466456,1770162923599,-249.71934803,0.00057534,120]
[404466457,1770162923646,-185.68278717,0.00057534,120]
[404466458,1770162923692,-500.0,0.00057534,120]
[404466459,1770162923739,-500.0,0.00057534,120]
[404466460,1770162923785,-633.46196518,0.00057534,120]
[404466461,1770162923834,-500.0,0.00057534,120]
[404466462,1770162923882,-194.15201335,0.00057534,120]
[404466463,1770162924036,-500.0,0.00057534,120]
[404466464,1770162924088,-872.94,0.00057534,120]
[404466465,1770162924137,-500.0,0.00057534,120]
[404466466,1770162924186,-606.64814135,0.00057534,120]
[404466467,1770162924236,-500.0,0.00057534,120]
[404466468,1770162924284,-520.50086451,0.00057534,120]
[404466469,1770162924330,-521.50786456,0.00057534,120]
[404466470,1770162924376,-182.47347307,0.00057534,120]
[404466471,1770162924424,-525.07981222,0.00057534,120]
[404466472,1770162924470,-150.0,0.00057534,120]
[404466473,1770162924518,-577.02736862,0.00057534,120]
[404466474,1770162924565,-500.0,0.00057534,120]
[404466475,1770162924611,-500.0,0.00057534,120]
[404466476,1770162924659,-500.0,0.00057534,120]
[404466477,1770162924707,-500.0,0.00057534,120]
[404466478,1770162924755,-500.0,0.00057534,120]
[404466479,1770162924801,-1615.55,0.00057534,30]
[404466480,1770162924850,-500.0,0.00057534,120]
[404466481,1770162924899,-958.98,0.00057534,120]
[404466482,1770162924949,-500.0,0.00057534,120]
[404466483,1770162924999,-764.79,0.00057534,120]
[404466484,1770162925049,-500.0,0.00057534,120]
[404466485,1770162925098,-410.64908,0.00057534,120]
[404466486,1770162925148,-500.0,0.00057534,120]
[404466487,1770162925198,-500.0,0.00057534,120]
[404466488,1770162925248,-500.0,0.00057534,120]
[404466489,1770162925299,-299.42937157,0.00057534,120]
[404466490,1770162925347,-500.0,0.00057534,120]
[404466491,1770162925396,-582.54691862,0.00057534,120]
[404466492,1770162925444,-500.0,0.00057534,120]
[404466493,1770162925494,-500.0,0.00057534,120]
[404466494,1770162925542,-272.35754424,0.00057534,120]
[404466495,1770162925590,-560.19,0.00057534,120]
[404466496,1770162925637,-1802.39,0.00057534,120]
[404466497,1770162925685,-500.0,0.00057534,120]
[404466498,1770162925734,-603.36,0.00057534,120]
[404466499,1770162925782,-551.71449233,0.00057534,120]
[404466500,1770162925831,-566.15,0.00057534,120]
[404466501,1770162925879,-553.73105376,0.00057534,120]
[404466502,1770162925928,-1653.27,0.00057534,120]
[404466503,1770162925976,-500.0,0.00057534,120]
[404466504,1770162926025,-768.81,0.00057534,120]
[404466505,1770162926073,-500.0,0.00057534,120]
[404466506,1770162926122,-578.52,0.00057534,120]
[404466507,1770162926171,-599.2845306,0.00057534,120]
[404466508,1770162926223,-627.52,0.00057534,120]
[404466509,1770162926272,-844.72,0.00057534,120]
[404466510,1770162926323,-447.1397185,0.00057534,120]
[404466511,1770162926372,-495.1323114,0.00057534,120]
[404466512,1770162926421,-648.01,0.00057534,120]
[404466513,1770162926469,-552.99316717,0.00057534,120]
[404466514,1770162926521,-500.0,0.00057534,120]
[404466515,1770162926575,-7002.19,0.00057534,120]
[404466516,1770162926624,-529.37285833,0.00057534,120]
[404466517,1770162926675,-500.0,0.00057534,120]
[404466518,1770162926723,-580.00185063,0.00057534,120]
[404466519,1770162926772,-500.0,0.00057534,120]
[404466520,1770162926821,-500.0,0.00057534,120]
[404466521,1770162926870,-500.0,0.00057534,120]
[404466522,1770162926919,-262.88875801,0.00057534,120]
[404466523,1770162926967,-500.0,0.00057534,120]
[404466524,1770162927017,-205.17284265,0.00057534,120]
[404466525,1770162927064,-500.0,0.00057534,120]
[404466526,1770162927114,-500.0,0.00057534,120]
[404466527,1770162927163,-500.0,0.00057534,120]
[404466528,1770162927216,-208.030412,0.00057534,120]
[404466529,1770162927266,-16504.34,0.00057534,90]
[404466530,1770162927316,-1123.18,0.00057534,120]
[404466531,1770162927364,-500.0,0.00057534,120]
[404466532,1770162927411,-500.0,0.00057534,120]
[404466533,1770162927461,-2347.37,0.00057534,120]
[404466534,1770162927511,-584.1,0.000576,30]
[404466535,1770162927563,-200.0,0.00058171,120]
[404466536,1770162927613,-152.0,0.000585,120]
[404466537,1770162927663,-12948.78160394,0.000589,120]
[404466538,1770162927713,-4470.43992116,0.000589,120]
[404466539,1770162927761,-1000.0,0.00059,120]
[404466540,1770162927809,-11984.98348412,0.00059748,30]
[404466541,1770162927858,-379.085,0.00059748,30]
[404466542,1770162927907,-4308.06863547,0.00059748,30]
[404466543,1770162927958,-9882.41838275,0.00059748,30]
[404466544,1770162928012,-2470.60459569,0.00059748,30]
[404466545,1770162928065,-275.902121,0.00059862,120]